lending/lending_fUSD_20241120
["ID","MTS","AMOUNT","RATE_DAILY","PERIOD"]
[342807016,1732143150058,-506.06944056,0.00057808,120]
[342807017,1732143150068,-726.78,0.00057808,120]
[342807018,1732143150078,-3517.73,0.00057808,120]
[342807019,1732143150089,-500.0,0.00057808,120]
[342807020,1732143150099,-2949.54,0.00057808,120]
[342807021,1732143150109,-500.0,0.00057808,120]
[342807022,1732143150119,-680.36,0.00057808,120]
[342807023,1732143150129,-629.45,0.00057808,120]
[342807024,1732143150139,-500.0,0.00057808,120]
[342807025,1732143150149,-1835.32,0.00057808,120]
[342807026,1732143150159,-567.38,0.00057808,120]
[342807027,1732143150169,-1270.02,0.00057808,120]
[342807028,1732143150179,-1077.92,0.00057808,120]
[342807029,1732143150189,-1080.78,0.00057808,120]
[342807030,1732143150200,-500.0,0.00057808,120]
[342807031,1732143150210,-500.0,0.00057808,120]
[342807032,1732143150220,-730.91,0.00057808,120]
[342807033,1732143150230,-794.46,0.00057808,120]
[342807034,1732143150240,-633.74704206,0.00057808,120]
[342807035,1732143150251,-836.47,0.00057808,120]
[342807036,1732143150261,-877.06,0.00057808,120]
[342807037,1732143150271,-1006.93,0.00057808,120]
[342807038,1732143150281,-873.31,0.00057808,120]
[342807039,1732143150291,-500.0,0.00057808,120]
[342807040,1732143150302,-897.49,0.00057808,120]
[342807041,1732143150312,-5067.66,0.00057808,120]
[342807042,1732143150321,-615.04,0.00057808,120]
[342807043,1732143150331,-1213.36,0.00057808,120]
[342807044,1732143150341,-537.82,0.00057808,120]
[342807045,1732143150350,-500.0,0.00057808,120]
[342807046,1732143150360,-301.38564173,0.00057808,120]
[342807047,1732143150369,-500.0,0.00057808,120]
[342807048,1732143150379,-911.56,0.00057808,120]
[342807049,1732143150389,-1001.49,0.00057808,120]
[342807050,1732143150399,-1621.15,0.00057808,120]
[342807051,1732143150408,-1004.9,0.00057808,120]
[342807052,1732143150418,-1363.03,0.00057808,120]
[342807053,1732143150427,-670.6,0.00057808,120]
[342807054,1732143150437,-4519.72,0.00057808,120]
[342807055,1732143150446,-681.14,0.00057808,120]
[342807056,1732143150457,-597.02,0.00057808,120]
[342807057,1732143150466,-151.0,0.00057808,120]
[342807058,1732143150476,-151.0,0.00057808,120]
[342807059,1732143150486,-151.0,0.00057808,120]
[342807060,1732143150496,-151.0,0.00057808,120]
[342807061,1732143150506,-1529.3,0.00057808,120]
[342807062,1732143150516,-500.0,0.00057808,120]
[342807063,1732143150526,-5382.48,0.00057808,120]
[342807064,1732143150536,-2209.36,0.00057808,120]
[342807065,1732143150546,-640.41,0.00057808,120]
[342807066,1732143150555,-1045.28,0.00057808,120]
[342807067,1732143150565,-500.0,0.00057808,120]
[342807068,1732143150575,-151.0,0.00057808,120]
[342807069,1732143150585,-500.0,0.00057808,120]
[342807070,1732143150595,-3525.53,0.00057808,120]
[342807071,1732143150606,-5113.62,0.00057808,120]
[342807072,1732143150616,-151.0,0.00057808,120]
[342807073,1732143150626,-900.0,0.00058,59]
[342807074,1732143150637,-700.47338351,0.00058,120]
[342807075,1732143150649,-204.0,0.0005802,30]
[342807076,1732143150659,-205.0,0.0005802,30]
[342807077,1732143150669,-174.27,0.00058075,120]
[342807078,1732143150678,-174.271,0.00058075,120]
[342807079,1732143150688,-174.271,0.00058075,120]
[342807080,1732143150698,-500.0,0.00058082,120]
[342807081,1732143150708,-500.0,0.00058082,120]
[342807082,1732143150717,-500.0,0.00058082,120]
[342807083,1732143150726,-949.28,0.00058082,120]
[342807084,1732143150736,-588.18,0.00058082,120]
[342807085,1732143150745,-500.0,0.00058082,120]
[342807086,1732143150755,-537.72171295,0.00058082,120]
[342807087,1732143150764,-216.87,0.00058082,7]
[342807088,1732143150774,-1647.84,0.00058082,120]
[342807089,1732143150783,-500.0,0.00058082,120]
[342807090,1732143150793,-672.22,0.00058082,120]
[342807091,1732143150802,-901.77,0.00058082,120]
[342807092,1732143150811,-749.97,0.00058082,120]
[342807093,1732143150820,-500.0,0.00058082,120]
[342807094,1732143150829,-1584.28,0.00058082,120]
[342807095,1732143150838,-500.0,0.00058082,120]
[342807096,1732143150848,-500.0,0.00058082,120]
[342807097,1732143150858,-698.15,0.00058082,120]
[342807098,1732143150867,-500.0,0.00058082,120]
[342807099,1732143150878,-500.0,0.00058082,120]
[342807100,1732143150888,-500.0,0.00058082,120]
[342807101,1732143150899,-550.21,0.00058082,120]
[342807102,1732143150911,-838.1,0.00058082,120]
[342807103,1732143150922,-500.0,0.00058082,120]
[342807104,1732143150933,-334.99058339,0.00058082,120]
[342807105,1732143150943,-678.26,0.00058082,120]
[342807106,1732143150953,-528.71,0.00058082,120]
[342807107,1732143150963,-577.89,0.00058082,120]
[342807108,1732143150972,-1058.89,0.00058082,120]
[342807109,1732143150983,-500.0,0.00058082,120]
[342807110,1732143150993,-500.0,0.00058082,120]
[342807111,1732143151002,-516.05,0.00058082,120]
[342807112,1732143151012,-500.0,0.00058082,120]
[342807113,1732143151021,-1582.8,0.00058082,120]
[342807114,1732143151031,-512.91,0.00058082,120]
[342807115,1732143151041,-910.7,0.00058082,120]
[342807116,1732143151050,-500.0,0.00058082,120]
[342807117,1732143151059,-686.07,0.00058082,120]
[342807118,1732143151069,-500.0,0.00058082,120]
[342807119,1732143151079,-718.84,0.00058082,120]
[342807120,1732143151089,-500.0,0.00058082,120]
[342807121,1732143151099,-566.64,0.00058082,120]
[342807122,1732143151109,-581.13,0.00058082,120]
[342807123,1732143151119,-558.19,0.00058082,120]
[342807124,1732143151129,-1275.31,0.00058082,120]
[342807125,1732143151139,-500.0,0.00058082,120]
[342807126,1732143151149,-500.0,0.00058082,120]
[342807127,1732143151158,-646.55,0.00058082,120]
[342807128,1732143151168,-500.0,0.00058082,120]
[342807129,1732143151177,-889.52,0.00058082,120]
[342807130,1732143151187,-1844.67,0.00058082,120]
[342807131,1732143151196,-1345.16,0.00058082,120]
[342807132,1732143151207,-500.0,0.00058082,120]
[342807133,1732143151217,-1354.36,0.00058082,120]
[342807134,1732143151227,-1126.54,0.00058082,120]
[342807135,1732143151237,-810.54,0.00058082,120]
[342807136,1732143151247,-1630.49,0.00058082,120]
[342807137,1732143151256,-1061.11,0.00058082,120]
[342807138,1732143151265,-1539.37,0.00058082,120]
[342807139,1732143151275,-616.53,0.00058082,120]
[342807140,1732143151285,-500.0,0.00058082,120]
[342807141,1732143151295,-1163.7,0.00058082,120]
[342807142,1732143151304,-1697.48,0.00058082,120]
[342807143,1732143151313,-768.83,0.00058082,120]
[342807144,1732143151322,-1494.04,0.00058082,120]
[342807145,1732143151331,-583.76,0.00058082,120]
[342807146,1732143151341,-188.11902756,0.00058082,120]
[342807147,1732143151351,-500.0,0.00058082,120]
[342807148,1732143151360,-500.0,0.00058082,120]
[342807149,1732143151370,-1417.12,0.00058082,120]
[342807150,1732143151379,-514.86,0.00058082,120]
[342807151,1732143151388,-580.28,0.00058082,120]
[342807152,1732143151398,-628.29207984,0.00058082,120]
[342807153,1732143151408,-500.0,0.00058082,120]
[342807154,1732143151418,-411.7228226,0.00058082,120]
[342807155,1732143151428,-625.85,0.00058082,120]
[342807156,1732143151437,-835.63,0.00058082,120]
[342807157,1732143151447,-500.0,0.00058082,120]
[342807158,1732143151460,-1642.42,0.00058082,7]
[342807159,1732143151470,-1168.69,0.00058082,120]
[342807160,1732143151480,-500.0,0.00058082,120]
[342807161,1732143151489,-785.67,0.00058082,120]
[342807162,1732143151499,-526.48,0.00058082,120]
[342807163,1732143151508,-1791.8,0.00058082,120]
[342807164,1732143151518,-500.0,0.00058082,120]
[342807165,1732143151528,-500.0,0.00058082,120]
[342807166,1732143151537,-500.0,0.00058082,120]
[342807167,1732143151547,-500.0,0.00058082,120]
[342807168,1732143151557,-764.29,0.00058082,120]
[342807169,1732143151568,-937.69,0.00058082,120]
[342807170,1732143151579,-830.14,0.00058082,120]
[342807171,1732143151589,-500.0,0.00058082,58]
[342807172,1732143151599,-500.0,0.00058082,120]
[342807173,1732143151608,-1926.82,0.00058082,120]
[342807174,1732143151617,-513.97,0.00058082,120]
[342807175,1732143151627,-500.0,0.00058082,120]
[342807176,1732143151636,-1258.94,0.00058082,120]
[342807177,1732143151646,-615.91,0.00058082,120]
[342807178,1732143151655,-739.53,0.00058082,120]
[342807179,1732143151665,-2364.09,0.00058082,120]
[342807180,1732143151674,-500.0,0.00058082,120]
[342807181,1732143151684,-1516.8,0.00058082,120]
[342807182,1732143151693,-644.03,0.00058082,120]
[342807183,1732143151706,-1222.69,0.00058082,120]
[342807184,1732143151715,-2792.61,0.00058082,120]
[342807185,1732143151725,-689.07,0.00058082,120]
[342807186,1732143151734,-598.66,0.00058082,120]
[342807187,1732143151744,-696.8,0.00058082,120]
[342807188,1732143151753,-517.71,0.00058082,120]
[342807189,1732143151762,-670.6,0.00058082,120]
[342807190,1732143151772,-1622.41,0.00058082,120]
[342807191,1732143151781,-732.47,0.00058082,120]
[342807192,1732143151791,-500.0,0.00058082,120]
[342807193,1732143151800,-500.0,0.00058082,120]
[342807194,1732143151810,-3752.95,0.00058082,120]
[342807195,1732143151819,-694.86,0.00058082,120]
[342807196,1732143151829,-527.72,0.00058082,120]
[342807197,1732143151838,-500.0,0.00058082,120]
[342807198,1732143151847,-151.0,0.00058082,120]
[342807199,1732143151856,-2754.45,0.00058082,120]
[342807200,1732143151865,-500.0,0.00058082,120]
[342807201,1732143151874,-1552.42,0.00058082,120]
[342807202,1732143151883,-750.37,0.00058082,120]
[342807203,1732143151892,-151.0,0.00058082,120]
[342807204,1732143151902,-777.0,0.00058082,120]
[342807205,1732143151914,-586.88,0.00058082,120]
[342807206,1732143151923,-546.79,0.00058082,120]
[342807207,1732143151932,-1410.35,0.00058082,120]
[342807208,1732143151941,-151.0,0.00058082,120]
[342807209,1732143151954,-622.81,0.00058082,120]
[342807210,1732143151963,-1078.42,0.00058082,120]
[342807211,1732143151973,-2348.91,0.00058082,120]
[342807212,1732143151983,-1803.88,0.00058082,120]
[342807213,1732143151993,-151.0,0.00058082,120]
[342807214,1732143152003,-875.42,0.00058082,120]
[342807215,1732143152131,-908.45,0.00058082,120]
[342807216,1732143152141,-1745.98,0.00058082,120]
[342807217,1732143152151,-643.69,0.00058082,120]
[342807218,1732143152160,-659.6,0.00058082,120]
[342807219,1732143152170,-500.0,0.00058082,120]
[342807220,1732143152181,-1212.54,0.00058082,120]
[342807221,1732143152190,-2042.25,0.00058082,120]
[342807222,1732143152200,-828.06,0.00058082,120]
[342807223,1732143152210,-151.0,0.00058082,120]
[342807224,1732143152220,-646.63,0.00058082,120]
[342807225,1732143152230,-806.31,0.00058082,120]
[342807226,1732143152240,-500.0,0.00058082,120]
[342807227,1732143152249,-1287.88,0.00058082,120]
[342807228,1732143152260,-1410.77,0.00058082,120]
[342807229,1732143152270,-186.77610988,0.00058082,120]
[342807230,1732143152280,-623.91,0.00058082,120]
[342807231,1732143152290,-1000.52,0.00058082,120]
[342807232,1732143152300,-766.21,0.00058082,120]
[342807233,1732143152311,-500.0,0.00058082,120]
[342807234,1732143152320,-1013.49,0.00058082,120]
[342807235,1732143152329,-811.56,0.00058082,120]
[342807236,1732143152339,-500.0,0.00058082,120]
[342807237,1732143152349,-500.0,0.00058082,120]
[342807238,1732143152359,-3361.2,0.00058082,120]
[342807239,1732143152368,-1185.33,0.00058082,120]
[342807240,1732143152377,-633.81,0.00058082,120]
[342807241,1732143152387,-838.48,0.00058082,120]
[342807242,1732143152397,-1382.6,0.00058082,120]
[342807243,1732143152405,-500.0,0.00058082,120]
[342807244,1732143152414,-2198.56,0.00058082,120]
[342807245,1732143152425,-569.02562745,0.00058082,120]
[342807246,1732143152435,-658.16,0.00058082,120]
[342807247,1732143152445,-500.0,0.00058082,120]
[342807248,1732143152456,-500.0,0.00058082,120]
[342807249,1732143152465,-581.06,0.00058082,120]
[342807250,1732143152474,-500.0,0.00058082,120]
[342807251,1732143152483,-843.03,0.00058082,120]
[342807252,1732143152493,-665.72,0.00058082,120]
[342807253,1732143152503,-789.82,0.00058082,120]
[342807254,1732143152513,-660.24,0.00058082,120]
[342807255,1732143152522,-500.0,0.00058082,120]
[342807256,1732143152531,-504.35,0.00058082,120]
[342807257,1732143152540,-2411.2,0.00058082,120]
[342807258,1732143152548,-773.4,0.00058082,120]
[342807259,1732143152557,-3997.56,0.00058082,120]
[342807260,1732143152566,-500.0,0.00058082,120]
[342807261,1732143152576,-500.0,0.00058082,120]
[342807262,1732143152585,-559.66,0.00058082,120]
[342807263,1732143152594,-1755.1,0.00058082,120]
[342807264,1732143152604,-1021.42,0.00058082,120]
[342807265,1732143152613,-968.59,0.00058082,120]
[342807266,1732143152622,-747.74,0.00058082,120]
[342807267,1732143152631,-386.12480023,0.00058082,120]
[342807268,1732143152640,-650.26,0.00058082,120]
[342807269,1732143152649,-552.66,0.00058082,120]
[342807270,1732143152658,-528.53,0.00058082,120]
[342807271,1732143152667,-661.12,0.00058082,120]
[342807272,1732143152676,-4504.33,0.00058082,120]
[342807273,1732143152685,-500.0,0.00058082,120]
[342807274,1732143152694,-1414.7,0.00058082,120]
[342807275,1732143152704,-500.0,0.00058082,120]
[342807276,1732143152713,-1839.1,0.00058082,20]
[342807277,1732143152723,-600.15,0.00058082,120]
[342807278,1732143152732,-642.76501204,0.00058082,120]
[342807279,1732143152741,-639.71,0.00058082,120]
[342807280,1732143152750,-500.0,0.00058082,120]
[342807281,1732143152760,-1685.02,0.00058082,120]
[342807282,1732143152769,-500.0,0.00058082,120]
[342807283,1732143152778,-500.0,0.00058082,120]
[342807284,1732143152787,-643.92,0.00058082,120]
[342807285,1732143152797,-500.0,0.00058082,120]
[342807286,1732143152806,-503.41,0.00058082,120]
[342807287,1732143152815,-1838.85,0.00058082,120]
[342807288,1732143152825,-777.36,0.00058082,120]
[342807289,1732143152833,-1088.52,0.00058082,120]
[342807290,1732143152843,-3963.88,0.00058082,120]
[342807291,1732143152852,-500.0,0.00058082,120]
[342807292,1732143152861,-508.93,0.00058082,120]
[342807293,1732143152870,-500.0,0.00058082,120]
[342807294,1732143152879,-500.0,0.00058082,120]
[342807295,1732143152888,-522.18,0.00058082,120]
[342807296,1732143152898,-674.72,0.00058082,120]
[342807297,1732143152910,-1573.1,0.00058082,120]
[342807298,1732143152919,-500.0,0.00058082,120]
[342807299,1732143152930,-1344.45,0.00058082,120]
[342807300,1732143152940,-695.34,0.00058082,120]
[342807301,1732143152951,-530.39,0.00058082,120]
[342807302,1732143152960,-993.23,0.00058082,120]
[342807303,1732143152970,-5030.76,0.00058082,120]
[342807304,1732143152981,-1007.71,0.00058082,120]
[342807305,1732143152990,-845.57,0.00058082,120]
[342807306,1732143152999,-1508.05,0.00058082,120]
[342807307,1732143153009,-1000.0,0.00058082,30]
[342807308,1732143153019,-500.0,0.00058082,120]
[342807309,1732143153028,-1949.27,0.00058082,120]
[342807310,1732143153038,-635.4,0.00058082,120]
[342807311,1732143153048,-3671.8,0.00058082,120]
[342807312,1732143153058,-873.15,0.00058082,120]
[342807313,1732143153068,-1275.78,0.00058082,120]
[342807314,1732143153077,-500.0,0.00058082,120]
[342807315,1732143153087,-1300.6,0.00058082,120]
[342807316,1732143153097,-500.0,0.00058082,120]
[342807317,1732143153106,-1078.43,0.00058082,120]
[342807318,1732143153115,-729.83,0.00058082,120]
[342807319,1732143153125,-1015.57,0.00058082,120]
[342807320,1732143153135,-562.04,0.00058082,120]
[342807321,1732143153145,-2596.1,0.00058082,120]
[342807322,1732143153154,-2222.66,0.00058082,120]
[342807323,1732143153164,-1080.64,0.00058082,120]
[342807324,1732143153174,-852.14,0.00058082,120]
[342807325,1732143153184,-569.32,0.00058082,120]
[342807326,1732143153193,-500.0,0.00058082,120]
[342807327,1732143153203,-509.24,0.00058082,120]
[342807328,1732143153213,-700.0,0.00058082,120]
[342807329,1732143153222,-151.0,0.00058082,120]
[342807330,1732143153232,-928.5,0.00058082,120]
[342807331,1732143153241,-241.298967,0.00058082,120]
[342807332,1732143153251,-1806.6,0.00058082,120]
[342807333,1732143153260,-1129.79,0.00058082,120]
[342807334,1732143153270,-500.0,0.00058082,120]
[342807335,1732143153279,-500.0,0.00058082,120]
[342807336,1732143153289,-2425.19,0.00058082,120]
[342807337,1732143153298,-625.0,0.00058082,120]
[342807338,1732143153308,-500.0,0.00058082,120]
[342807339,1732143153317,-1018.93,0.00058082,120]
[342807340,1732143153327,-151.0,0.00058082,120]
[342807341,1732143153336,-2073.72,0.00058082,120]
[342807342,1732143153346,-151.0,0.00058082,120]
[342807343,1732143153355,-500.0,0.00058082,120]
[342807344,1732143153364,-1011.93,0.00058082,120]
[342807345,1732143153373,-1257.41,0.00058082,120]
[342807346,1732143153383,-1328.54,0.00058082,120]
[342807347,1732143153393,-893.2,0.00058082,120]
[342807348,1732143153403,-878.56,0.00058082,120]
[342807349,1732143153413,-1107.33,0.00058082,120]
[342807350,1732143153422,-1954.12,0.00058082,120]
[342807351,1732143153432,-5394.68,0.00058082,120]
[342807352,1732143153442,-500.0,0.00058082,120]
[342807353,1732143153452,-500.0,0.00058082,120]
[342807354,1732143153462,-151.0,0.00058082,120]
[342807355,1732143153471,-543.1,0.00058082,120]
[342807356,1732143153480,-965.73,0.00058082,120]
[342807357,1732143153489,-500.0,0.00058082,120]
[342807358,1732143153499,-151.0,0.00058082,120]
[342807359,1732143153508,-500.0,0.00058082,120]
[342807360,1732143153518,-200.46325,0.00058082,120]
[342807361,1732143153528,-514.01427605,0.00058082,120]
[342807362,1732143153538,-1317.76,0.00058082,120]
[342807363,1732143153548,-594.46,0.00058082,120]
[342807364,1732143153557,-1617.12,0.00058082,120]
[342807365,1732143153568,-657.08,0.00058082,120]
[342807366,1732143153577,-4865.56,0.00058082,120]
[342807367,1732143153587,-628.07,0.00058082,120]
[342807368,1732143153596,-567.172995,0.00058082,120]
[342807369,1732143153606,-500.0,0.00058082,120]
[342807370,1732143153616,-500.0,0.00058082,120]
[342807371,1732143153625,-567.172995,0.00058082,120]
[342807372,1732143153635,-151.0,0.00058082,120]
[342807373,1732143153644,-1510.86,0.00058082,120]
[342807374,1732143153654,-2529.98,0.00058082,120]
[342807375,1732143153663,-635.24,0.00058082,120]
[342807376,1732143153672,-750.97,0.00058082,120]
[342807377,1732143153682,-1761.11,0.00058082,120]
[342807378,1732143153691,-624.76,0.00058082,120]
[342807379,1732143153700,-500.0,0.00058082,120]
[342807380,1732143153709,-46265.17,0.00058082,120]
[342807381,1732143153719,-151.0,0.00058082,120]
[342807382,1732143153728,-500.0,0.00058082,120]
[342807383,1732143153738,-880.93,0.00058082,120]
[342807384,1732143153747,-644.52,0.00058082,120]
[342807385,1732143153757,-500.0,0.00058082,120]
[342807386,1732143153766,-4390.12,0.00058082,120]
[342807387,1732143153775,-151.0,0.00058082,120]
[342807388,1732143153784,-500.0,0.00058082,120]
[342807389,1732143153793,-3641.91,0.00058082,120]
[342807390,1732143153803,-500.0,0.00058082,120]
[342807391,1732143153812,-2046.77,0.00058082,120]
[342807392,1732143153821,-151.0,0.00058082,120]
[342807393,1732143153830,-500.0,0.00058082,120]
[342807394,1732143153839,-519.31,0.00058082,120]
[342807395,1732143153848,-1582.94,0.00058082,120]
[342807396,1732143153857,-1566.08,0.00058082,120]
[342807397,1732143153867,-1540.18,0.00058082,120]
[342807398,1732143153876,-151.0,0.00058082,120]
[342807399,1732143153885,-500.0,0.00058082,120]
[342807400,1732143153895,-32182.96,0.00058082,120]
[342807401,1732143153905,-2395.44,0.00058082,120]
[342807402,1732143153917,-500.0,0.00058082,120]
[342807403,1732143153926,-500.0,0.00058082,120]
[342807404,1732143153936,-774.88,0.00058082,120]
[342807405,1732143153946,-500.0,0.00058082,120]
[342807406,1732143153956,-500.0,0.00058082,120]
[342807407,1732143153966,-3018.97,0.00058082,120]
[342807408,1732143153975,-1221.56,0.00058082,120]
[342807409,1732143153985,-949.33,0.00058082,120]
[342807410,1732143153995,-500.0,0.00058082,120]
[342807411,1732143154004,-500.0,0.00058082,120]
[342807412,1732143154013,-512.47,0.00058082,120]
[342807413,1732143154024,-500.0,0.00058082,120]
[342807414,1732143154033,-975.73,0.00058082,120]
[342807415,1732143154042,-500.0,0.00058082,120]
[342807416,1732143154051,-1680.87,0.00058082,120]
[342807417,1732143154061,-2068.97,0.00058082,120]
[342807418,1732143154071,-509.92,0.00058082,120]
[342807419,1732143154081,-2386.08,0.00058082,120]
[342807420,1732143154091,-850.0,0.00058082,120]
[342807421,1732143154100,-2587.78,0.00058082,120]
[342807422,1732143154110,-1481.97,0.00058082,120]
[342807423,1732143154120,-500.0,0.00058082,120]
[342807424,1732143154129,-1478.74,0.00058082,120]
[342807425,1732143154139,-500.0,0.00058082,120]
[342807426,1732143154148,-580.13,0.00058082,120]
[342807427,1732143154157,-500.0,0.00058082,120]
[342807428,1732143154166,-500.0,0.00058082,120]
[342807429,1732143154176,-1753.89,0.00058082,120]
[342807430,1732143154186,-816.51,0.00058082,120]
[342807431,1732143154196,-500.0,0.00058082,120]
[342807432,1732143154207,-10880.09,0.00058082,120]
[342807433,1732143154217,-2245.37,0.00058082,120]
[342807434,1732143154226,-500.0,0.00058082,120]
[342807435,1732143154236,-3622.31,0.00058082,120]
[342807436,1732143154245,-502.6,0.00058082,120]
[342807437,1732143154254,-500.0,0.00058082,120]
[342807438,1732143154264,-245.50910315,0.00058082,120]
[342807439,1732143154273,-500.0,0.00058082,120]
[342807440,1732143154282,-1317.84,0.00058082,120]
[342807441,1732143154291,-1518.89,0.00058082,90]
[342807442,1732143154301,-1643.31,0.00058082,120]
[342807443,1732143154309,-1298.63,0.00058082,120]
[342807444,1732143154319,-943.47,0.00058082,120]
[342807445,1732143154328,-500.0,0.00058082,120]
[342807446,1732143154337,-1649.32,0.00058082,120]
[342807447,1732143154346,-550.87,0.00058082,120]
[342807448,1732143154356,-5640.48,0.00058082,120]
[342807449,1732143154365,-2158.9,0.00058082,120]
[342807450,1732143154375,-500.0,0.00058082,120]
[342807451,1732143154384,-1165.26,0.00058082,120]
[342807452,1732143154394,-1244.51,0.00058082,120]
[342807453,1732143154403,-500.0,0.00058082,120]
[342807454,1732143154412,-500.0,0.00058082,120]
[342807455,1732143154422,-9870.91,0.00058082,120]
[342807456,1732143154431,-1110.14,0.00058082,120]
[342807457,1732143154441,-986.78,0.00058082,120]
[342807458,1732143154459,-567.02,0.00058082,120]
[342807459,1732143154469,-500.0,0.00058082,120]
[342807460,1732143154479,-651.9,0.00058082,120]
[342807461,1732143154489,-500.0,0.00058082,120]
[342807462,1732143154498,-3368.96,0.00058082,120]
[342807463,1732143154508,-6243.58,0.00058082,120]
[342807464,1732143154518,-1221.81,0.00058082,120]
[342807465,1732143154528,-1021.75,0.00058082,120]
[342807466,1732143154537,-500.0,0.00058082,120]
[342807467,1732143154547,-1378.96,0.00058082,120]
[342807468,1732143154557,-500.0,0.00058082,120]
[342807469,1732143154567,-500.0,0.00058082,120]
[342807470,1732143154576,-1402.48,0.00058082,120]
[342807471,1732143154586,-2324.89,0.00058082,120]
[342807472,1732143154596,-1098.99,0.00058082,7]
[342807473,1732143154606,-500.0,0.00058082,120]
[342807474,1732143154616,-3357.52,0.00058082,120]
[342807475,1732143154625,-631.52,0.00058082,120]
[342807476,1732143154634,-1503.83,0.00058082,120]
[342807477,1732143154643,-500.0,0.00058082,120]
[342807478,1732143154652,-610.46,0.00058082,120]
[342807479,1732143154662,-500.0,0.00058082,120]
[342807480,1732143154671,-676.3,0.00058082,120]
[342807481,1732143154680,-4485.14,0.00058082,120]
[342807482,1732143154689,-1449.22,0.00058082,120]
[342807483,1732143154698,-1005.77,0.00058082,120]
[342807484,1732143154707,-802.14,0.00058082,120]
[342807485,1732143154717,-62267.29,0.00058082,5]
[342807486,1732143154727,-500.0,0.00058082,120]
[342807487,1732143154737,-500.0,0.00058082,120]
[342807488,1732143154747,-1000.0,0.00058082,120]
[342807489,1732143154758,-1200.11,0.00058082,120]
[342807490,1732143154769,-500.0,0.00058082,120]
[342807491,1732143154779,-4633.73,0.00058082,120]
[342807492,1732143154790,-1462.06,0.00058082,120]
[342807493,1732143154800,-1071.61,0.00058082,120]
[342807494,1732143154811,-1246.53,0.00058082,120]
[342807495,1732143154822,-500.0,0.00058082,120]
[342807496,1732143154832,-665.76,0.00058082,120]
[342807497,1732143154841,-500.0,0.00058082,120]
[342807498,1732143154851,-1619.4,0.00058082,120]
[342807499,1732143154860,-4155.63,0.00058082,120]
[342807500,1732143154869,-534.16,0.00058082,120]
[342807501,1732143154879,-500.0,0.00058082,120]
[342807502,1732143154888,-500.0,0.00058082,120]
[342807503,1732143154899,-716.03,0.00058082,120]
[342807504,1732143154915,-710.7,0.00058082,120]
[342807505,1732143154925,-1328.15,0.00058082,120]
[342807506,1732143154935,-151.0,0.00058082,120]
[342807507,1732143154944,-3842.23,0.00058082,120]
[342807508,1732143154954,-151.0,0.00058082,120]
[342807509,1732143154963,-1770.4,0.00058082,120]
[342807510,1732143154974,-1828.16,0.00058082,120]
[342807511,1732143154986,-734.2,0.00058082,120]
[342807512,1732143154995,-208.11453,0.00058082,120]
[342807513,1732143155005,-500.0,0.00058082,120]
[342807514,1732143155014,-208.11453,0.00058082,120]
[342807515,1732143155023,-208.11453,0.00058082,120]